[Event "Late-Titled-Tuesday-Blitz-September-19-2023"]
[Site "Chess.com"]
[Date "2023.09.19"]
[Round "4"]
[White "alexrustemov"]
[Black "BigAl"]
[Result "1/2-1/2"]
[WhiteElo "2787"]
[BlackElo "2555"]
[TimeControl "180+1"]
[EndTime "14:38:43 PDT"]
[Termination "Game drawn - insufficient material"]

1. d4 {[%clk 0:02:56.5]} 1... Nf6 {[%clk 0:02:59.2]} 2. c4 {[%clk 0:02:56.9]}
2... g6 {[%clk 0:02:59.8]} 3. Nf3 {[%clk 0:02:57.3]} 3... Bg7 {[%clk 0:03:00.7]}
4. g3 {[%clk 0:02:57.9]} 4... O-O {[%clk 0:03:01.6]} 5. Bg2 {[%clk 0:02:58.4]}
5... d6 {[%clk 0:03:02.5]} 6. Nc3 {[%clk 0:02:58.7]} 6... Nbd7 {[%clk
0:03:03.4]} 7. O-O {[%clk 0:02:58.9]} 7... e5 {[%clk 0:03:04]} 8. e4 {[%clk
0:02:59.3]} 8... c6 {[%clk 0:03:04.6]} 9. h3 {[%clk 0:02:58.7]} 9... Qa5 {[%clk
0:03:04.4]} 10. Be3 {[%clk 0:02:56.3]} 10... Nb6 {[%clk 0:03:00.4]} 11. Nd2
{[%clk 0:02:50.2]} 11... Qa6 {[%clk 0:02:43.2]} 12. b3 {[%clk 0:02:47.3]} 12...
Ng4 {[%clk 0:02:35.7]} 13. hxg4 {[%clk 0:02:43.6]} 13... exd4 {[%clk 0:02:35.9]}
14. Bxd4 {[%clk 0:02:41.8]} 14... Bxd4 {[%clk 0:02:35.9]} 15. Rc1 {[%clk
0:02:39.2]} 15... Qa5 {[%clk 0:02:04.9]} 16. Ne2 {[%clk 0:02:30.2]} 16... Bxg4
{[%clk 0:01:54.6]} 17. Bf3 {[%clk 0:02:24]} 17... Bxf3 {[%clk 0:01:49.6]} 18.
Nxf3 {[%clk 0:02:24.9]} 18... Be5 {[%clk 0:01:47.6]} 19. Qd2 {[%clk 0:02:21.9]}
19... Qxd2 {[%clk 0:01:42.7]} 20. Nxd2 {[%clk 0:02:22.8]} 20... Rfe8 {[%clk
0:01:37.1]} 21. Rcd1 {[%clk 0:02:13.5]} 21... a5 {[%clk 0:01:32.8]} 22. Nc1
{[%clk 0:02:07.3]} 22... a4 {[%clk 0:01:28.7]} 23. Nd3 {[%clk 0:02:06.9]} 23...
axb3 {[%clk 0:01:27.6]} 24. axb3 {[%clk 0:02:07.7]} 24... Bg7 {[%clk 0:01:16.5]}
25. c5 {[%clk 0:01:58.7]} 25... dxc5 {[%clk 0:01:01.4]} 26. Nxc5 {[%clk
0:01:59.6]} 26... Re7 {[%clk 0:01:01.1]} 27. Nc4 {[%clk 0:01:45.6]} 27... Nxc4
{[%clk 0:00:56.4]} 28. bxc4 {[%clk 0:01:46.5]} 28... b6 {[%clk 0:00:38.8]} 29.
Rd7 {[%clk 0:01:45.9]} 29... Rxd7 {[%clk 0:00:34.1]} 30. Nxd7 {[%clk 0:01:46.8]}
30... b5 {[%clk 0:00:34.7]} 31. cxb5 {[%clk 0:01:41.7]} 31... cxb5 {[%clk
0:00:35.6]} 32. Rb1 {[%clk 0:01:41.5]} 32... Ra1 {[%clk 0:00:34.4]} 33. Rxa1
{[%clk 0:01:40.4]} 33... Bxa1 {[%clk 0:00:35.3]} 34. Kf1 {[%clk 0:01:37.3]}
34... h5 {[%clk 0:00:34.7]} 35. Nc5 {[%clk 0:01:31]} 35... g5 {[%clk 0:00:31.6]}
36. f4 {[%clk 0:01:20.7]} 36... gxf4 {[%clk 0:00:28.4]} 37. gxf4 {[%clk
0:01:21.6]} 37... Bd4 {[%clk 0:00:25.8]} 38. Nb3 {[%clk 0:01:17.3]} 38... Be3
{[%clk 0:00:26.1]} 39. f5 {[%clk 0:01:15.7]} 39... Bf4 {[%clk 0:00:26.2]} 40.
Kg2 {[%clk 0:01:08.4]} 40... Be5 {[%clk 0:00:26.2]} 41. Kh3 {[%clk 0:01:07.6]}
41... Kg7 {[%clk 0:00:26.8]} 42. Nc5 {[%clk 0:01:00.6]} 42... b4 {[%clk
0:00:25.9]} 43. Kh4 {[%clk 0:00:52.8]} 43... Kh6 {[%clk 0:00:24.9]} 44. Nb3
{[%clk 0:00:53]} 44... Bf6+ {[%clk 0:00:24.2]} 45. Kg3 {[%clk 0:00:52.4]} 45...
Kg5 {[%clk 0:00:24.7]} 46. Kf3 {[%clk 0:00:48.9]} 46... Be5 {[%clk 0:00:24.6]}
47. Nc5 {[%clk 0:00:42.9]} 47... h4 {[%clk 0:00:21.5]} 48. Nb3 {[%clk 0:00:35]}
48... h3 {[%clk 0:00:21.2]} 49. Nc5 {[%clk 0:00:35.3]} 49... Bc3 {[%clk
0:00:14.9]} 50. Kg3 {[%clk 0:00:32.7]} 50... Be1+ {[%clk 0:00:12.1]} 51. Kxh3
{[%clk 0:00:32.9]} 51... Kf4 {[%clk 0:00:12.5]} 52. Nd3+ {[%clk 0:00:28.5]}
52... Kxe4 {[%clk 0:00:12.2]} 53. Nc5+ {[%clk 0:00:15.2]} 53... Kxf5 {[%clk
0:00:11.3]} 54. Kg2 {[%clk 0:00:15.5]} 54... Bc3 {[%clk 0:00:08.3]} 55. Kf3
{[%clk 0:00:15.7]} 55... Ke5 {[%clk 0:00:08.8]} 56. Nb3 {[%clk 0:00:14.7]} 56...
Kd5 {[%clk 0:00:09]} 57. Ke2 {[%clk 0:00:13.9]} 57... Kc4 {[%clk 0:00:09.5]} 58.
Na5+ {[%clk 0:00:14.2]} 58... Kb5 {[%clk 0:00:09.1]} 59. Nb3 {[%clk 0:00:14.4]}
59... Ka4 {[%clk 0:00:09.9]} 60. Nc5+ {[%clk 0:00:14.8]} 60... Ka3 {[%clk
0:00:10.5]} 61. Kd3 {[%clk 0:00:15.3]} 61... Bg7 {[%clk 0:00:07.7]} 62. Kc4
{[%clk 0:00:14.4]} 62... f5 {[%clk 0:00:07.9]} 63. Nd3 {[%clk 0:00:12.4]} 63...
Bc3 {[%clk 0:00:06.9]} 64. Nc5 {[%clk 0:00:07.2]} 64... Bd2 {[%clk 0:00:06.9]}
65. Kd3 {[%clk 0:00:07.3]} 65... Be1 {[%clk 0:00:06.6]} 66. Ke2 {[%clk
0:00:06.6]} 66... Bc3 {[%clk 0:00:06.9]} 67. Ke3 {[%clk 0:00:06.7]} 67... b3
{[%clk 0:00:07.1]} 68. Nxb3 {[%clk 0:00:05.9]} 68... Kxb3 {[%clk 0:00:06.9]} 69.
Kf4 {[%clk 0:00:06.5]} 69... Kc4 {[%clk 0:00:06.5]} 70. Kxf5 {[%clk 0:00:07.1]}
1/2-1/2

[Event "Late-Titled-Tuesday-Blitz-September-19-2023"]
[Site "Chess.com"]
[Date "2023.09.19"]
[Round "4"]
[White "midedu"]
[Black "Qvalda"]
[Result "0-1"]
[WhiteElo "2029"]
[BlackElo "2337"]
[TimeControl "180+1"]
[EndTime "14:38:45 PDT"]
[Termination "Qvalda won on time"]

1. e4 {[%clk 0:03:00.9]} 1... e6 {[%clk 0:02:57.6]} 2. d3 {[%clk 0:02:57.6]}
2... d5 {[%clk 0:02:57.7]} 3. Nd2 {[%clk 0:02:57.8]} 3... Nc6 {[%clk 0:02:57.6]}
4. Ngf3 {[%clk 0:02:57.8]} 4... dxe4 {[%clk 0:02:56.9]} 5. dxe4 {[%clk
0:02:57.8]} 5... e5 {[%clk 0:02:57.5]} 6. Bc4 {[%clk 0:02:57.6]} 6... Be7 {[%clk
0:02:40.7]} 7. O-O {[%clk 0:02:56.8]} 7... Nf6 {[%clk 0:02:40.3]} 8. c3 {[%clk
0:02:55.3]} 8... O-O {[%clk 0:02:40.2]} 9. h3 {[%clk 0:02:55.2]} 9... a6 {[%clk
0:02:31.1]} 10. a4 {[%clk 0:02:54.7]} 10... Rb8 {[%clk 0:02:22.2]} 11. a5 {[%clk
0:02:54]} 11... h6 {[%clk 0:02:14.9]} 12. Qe2 {[%clk 0:02:53.3]} 12... Bc5
{[%clk 0:02:12.3]} 13. Rd1 {[%clk 0:02:47.3]} 13... Qe7 {[%clk 0:02:12.2]} 14.
Nf1 {[%clk 0:02:47.2]} 14... Be6 {[%clk 0:02:10.4]} 15. Ng3 {[%clk 0:02:40.5]}
15... Rbd8 {[%clk 0:02:08.8]} 16. Bd2 {[%clk 0:02:26.2]} 16... Kh7 {[%clk
0:02:01.9]} 17. b4 {[%clk 0:02:25.5]} 17... Ba7 {[%clk 0:02:00.9]} 18. Be1
{[%clk 0:02:01.4]} 18... g6 {[%clk 0:01:55.7]} 19. Rd2 {[%clk 0:01:54]} 19...
Rxd2 {[%clk 0:01:55.2]} 20. Bxd2 {[%clk 0:01:51.4]} 20... Rd8 {[%clk 0:01:50.9]}
21. Re1 {[%clk 0:01:50.2]} 21... Kg7 {[%clk 0:01:48.6]} 22. Bc1 {[%clk 0:01:49]}
22... Ng8 {[%clk 0:01:45.6]} 23. Kf1 {[%clk 0:01:38.2]} 23... Qd7 {[%clk
0:01:37.8]} 24. Bxe6 {[%clk 0:01:36.5]} 24... Qxe6 {[%clk 0:01:37.8]} 25. Nd2
{[%clk 0:01:21.2]} 25... Nf6 {[%clk 0:01:24.7]} 26. Nc4 {[%clk 0:01:20]} 26...
Rd7 {[%clk 0:01:02.3]} 27. Ne3 {[%clk 0:01:19.1]} 27... Ne7 {[%clk 0:01:00.7]}
28. Rd1 {[%clk 0:01:14.3]} 28... Rxd1+ {[%clk 0:00:58.5]} 29. Qxd1 {[%clk
0:01:14.1]} 29... Qc6 {[%clk 0:00:58.4]} 30. Qd3 {[%clk 0:01:11.1]} 30... Bxe3
{[%clk 0:00:49.1]} 31. Bxe3 {[%clk 0:01:10.5]} 31... Nc8 {[%clk 0:00:49.4]} 32.
f3 {[%clk 0:00:55.7]} 32... Nd6 {[%clk 0:00:48.8]} 33. Bc5 {[%clk 0:00:53.8]}
33... Qb5 {[%clk 0:00:45.3]} 34. Ke2 {[%clk 0:00:53.2]} 34... Nc4 {[%clk
0:00:36.5]} 35. Nf1 {[%clk 0:00:51.7]} 35... b6 {[%clk 0:00:36.1]} 36. Bf2
{[%clk 0:00:50.3]} 36... bxa5 {[%clk 0:00:35.4]} 37. bxa5 {[%clk 0:00:48]} 37...
Nxa5 {[%clk 0:00:34.8]} 38. Qxb5 {[%clk 0:00:45.3]} 38... axb5 {[%clk
0:00:35.7]} 39. Kd3 {[%clk 0:00:43.5]} 39... Kf8 {[%clk 0:00:33.5]} 40. Nd2
{[%clk 0:00:41.4]} 40... Ke7 {[%clk 0:00:31.8]} 41. Bc5+ {[%clk 0:00:40.3]}
41... Kd7 {[%clk 0:00:31]} 42. g4 {[%clk 0:00:40.7]} 42... Nb7 {[%clk
0:00:23.2]} 43. Be3 {[%clk 0:00:37.1]} 43... h5 {[%clk 0:00:22.9]} 44. c4 {[%clk
0:00:37]} 44... c6 {[%clk 0:00:19.4]} 45. Kc3 {[%clk 0:00:34]} 45... hxg4 {[%clk
0:00:18.9]} 46. hxg4 {[%clk 0:00:33.3]} 46... Kd6 {[%clk 0:00:18.9]} 47. cxb5
{[%clk 0:00:32]} 47... cxb5 {[%clk 0:00:19.8]} 48. Kb4 {[%clk 0:00:31.7]} 48...
Kc6 {[%clk 0:00:17.3]} 49. Nb1 {[%clk 0:00:29]} 49... Ne8 {[%clk 0:00:14.8]} 50.
Nc3 {[%clk 0:00:26.8]} 50... Nc7 {[%clk 0:00:14.2]} 51. Bf2 {[%clk 0:00:22.5]}
51... Na6+ {[%clk 0:00:14.4]} 52. Kb3 {[%clk 0:00:21.3]} 52... Nbc5+ {[%clk
0:00:14.5]} 53. Kc2 {[%clk 0:00:21.1]} 53... Ne6 {[%clk 0:00:14.2]} 54. Nd5
{[%clk 0:00:20.1]} 54... Nd4+ {[%clk 0:00:12.2]} 55. Bxd4 {[%clk 0:00:19]} 55...
exd4 {[%clk 0:00:13.1]} 56. Kd3 {[%clk 0:00:18.8]} 56... Kc5 {[%clk 0:00:13.3]}
57. Nf4 {[%clk 0:00:07.8]} 57... Nb4+ {[%clk 0:00:12.5]} 58. Kd2 {[%clk
0:00:07]} 58... Kc4 {[%clk 0:00:11.5]} 59. e5 {[%clk 0:00:07.2]} 59... Nc6
{[%clk 0:00:10.7]} 60. e6 {[%clk 0:00:07.1]} 60... fxe6 {[%clk 0:00:10.7]} 61.
Nxe6 {[%clk 0:00:07.3]} 61... b4 {[%clk 0:00:10.7]} 62. f4 {[%clk 0:00:07.3]}
62... b3 {[%clk 0:00:10.8]} 63. f5 {[%clk 0:00:06.1]} 63... gxf5 {[%clk
0:00:11.3]} 64. gxf5 {[%clk 0:00:06.2]} 64... d3 {[%clk 0:00:11.7]} 65. f6
{[%clk 0:00:04.3]} 65... b2 {[%clk 0:00:11.5]} 66. f7 {[%clk 0:00:03.6]} 66...
b1=Q {[%clk 0:00:11.5]} 67. f8=Q {[%clk 0:00:03.7]} 67... Qc2+ {[%clk
0:00:11.5]} 68. Ke3 {[%clk 0:00:04.1]} 68... Qe2+ {[%clk 0:00:11.6]} 69. Kf4
{[%clk 0:00:04.3]} 69... Qxe6 {[%clk 0:00:11]} 0-1

[Event "Late-Titled-Tuesday-Blitz-September-19-2023"]
[Site "Chess.com"]
[Date "2023.09.19"]
[Round "4"]
[White "DefiantChair"]
[Black "alertakobra"]
[Result "0-1"]
[WhiteElo "2598"]
[BlackElo "2389"]
[TimeControl "180+1"]
[EndTime "14:38:54 PDT"]
[Termination "alertakobra won by checkmate"]

1. e4 {[%clk 0:03:00.9]} 1... c6 {[%clk 0:02:57.6]} 2. d4 {[%clk 0:02:59]} 2...
d5 {[%clk 0:02:56.4]} 3. e5 {[%clk 0:02:59.6]} 3... Bf5 {[%clk 0:02:51.6]} 4.
Nf3 {[%clk 0:02:55.9]} 4... e6 {[%clk 0:02:37.4]} 5. Be2 {[%clk 0:02:54.7]} 5...
c5 {[%clk 0:02:35.8]} 6. Be3 {[%clk 0:02:49.4]} 6... Qb6 {[%clk 0:02:35.1]} 7.
c4 {[%clk 0:02:48.6]} 7... Qxb2 {[%clk 0:02:29.3]} 8. O-O {[%clk 0:02:47.1]}
8... Qxa1 {[%clk 0:02:24.9]} 9. Qb3 {[%clk 0:02:31.3]} 9... Nd7 {[%clk 0:01:53]}
10. Nc3 {[%clk 0:02:23.1]} 10... Qxf1+ {[%clk 0:01:51.6]} 11. Bxf1 {[%clk
0:02:23.9]} 11... O-O-O {[%clk 0:01:48]} 12. cxd5 {[%clk 0:02:21.1]} 12... exd5
{[%clk 0:01:47.7]} 13. Nb5 {[%clk 0:01:22.8]} 13... a6 {[%clk 0:01:31.7]} 14.
Nd6+ {[%clk 0:01:21.9]} 14... Bxd6 {[%clk 0:01:31]} 15. exd6 {[%clk 0:01:22.8]}
15... c4 {[%clk 0:01:25.4]} 16. Bxc4 {[%clk 0:01:19.9]} 16... Ngf6 {[%clk
0:01:15.4]} 17. Bf1 {[%clk 0:01:03.1]} 17... Rhe8 {[%clk 0:01:07.7]} 18. a4
{[%clk 0:00:20.3]} 18... Nb8 {[%clk 0:00:52.5]} 19. Qc3+ {[%clk 0:00:20.2]}
19... Nc6 {[%clk 0:00:50.4]} 20. Bxa6 {[%clk 0:00:20.5]} 20... Rxd6 {[%clk
0:00:50.4]} 21. Bb5 {[%clk 0:00:20]} 21... Ne4 {[%clk 0:00:47.4]} 22. Qc1 {[%clk
0:00:19.6]} 22... f6 {[%clk 0:00:42.3]} 23. h3 {[%clk 0:00:19.2]} 23... Bd7
{[%clk 0:00:40.1]} 24. a5 {[%clk 0:00:18.2]} 24... Rde6 {[%clk 0:00:27.2]} 25.
a6 {[%clk 0:00:18.3]} 25... bxa6 {[%clk 0:00:27.7]} 26. Bxa6+ {[%clk 0:00:19.1]}
26... Kd8 {[%clk 0:00:28.2]} 27. Bf1 {[%clk 0:00:18.7]} 27... Ke7 {[%clk
0:00:28.4]} 28. Qa3+ {[%clk 0:00:17.9]} 28... Kf7 {[%clk 0:00:28.2]} 29. Qa2
{[%clk 0:00:15.9]} 29... Nb4 {[%clk 0:00:20]} 30. Qb3 {[%clk 0:00:14]} 30... Rb6
{[%clk 0:00:17.5]} 31. Bf4 {[%clk 0:00:14]} 31... Be6 {[%clk 0:00:15.6]} 32. Qa3
{[%clk 0:00:13.4]} 32... Re7 {[%clk 0:00:13.6]} 33. g3 {[%clk 0:00:12]} 33... g5
{[%clk 0:00:10.9]} 34. Bc1 {[%clk 0:00:11.9]} 34... Reb7 {[%clk 0:00:07.9]} 35.
Nd2 {[%clk 0:00:11.8]} 35... Nxd2 {[%clk 0:00:07.5]} 36. Bxd2 {[%clk 0:00:12.7]}
36... Nc6 {[%clk 0:00:07.7]} 37. Qd3 {[%clk 0:00:12]} 37... Rb1 {[%clk
0:00:07.1]} 38. Qxh7+ {[%clk 0:00:11.4]} 38... Ke8 {[%clk 0:00:07.4]} 39. Kg2
{[%clk 0:00:12]} 39... Nxd4 {[%clk 0:00:06.8]} 40. Qh8+ {[%clk 0:00:11.4]} 40...
Kd7 {[%clk 0:00:06.8]} 41. Be3 {[%clk 0:00:11.8]} 41... Nf5 {[%clk 0:00:06.2]}
42. Qxf6 {[%clk 0:00:11.3]} 42... Nxe3+ {[%clk 0:00:05.6]} 43. fxe3 {[%clk
0:00:12.2]} 43... R7b2+ {[%clk 0:00:06.2]} 44. Kg1 {[%clk 0:00:12]} 44... Rd2
{[%clk 0:00:03.2]} 45. Qg7+ {[%clk 0:00:12.2]} 45... Kd6 {[%clk 0:00:02.7]} 46.
Qc3 {[%clk 0:00:11.6]} 46... Rdd1 {[%clk 0:00:02.5]} 47. Qa3+ {[%clk 0:00:09.4]}
47... Kd7 {[%clk 0:00:02.4]} 48. Qa7+ {[%clk 0:00:08.9]} 48... Kd6 {[%clk
0:00:02.4]} 49. Qa6+ {[%clk 0:00:08.7]} 49... Ke7 {[%clk 0:00:02.7]} 50. Qa7+
{[%clk 0:00:08.9]} 50... Kf8 {[%clk 0:00:02.4]} 51. Qa3+ {[%clk 0:00:08.6]}
51... Kg7 {[%clk 0:00:02.6]} 52. Qc3+ {[%clk 0:00:08.7]} 52... Kg6 {[%clk
0:00:03]} 53. Kg2 {[%clk 0:00:08.6]} 53... Rxf1 {[%clk 0:00:02.6]} 54. Qe5
{[%clk 0:00:08.3]} 54... Bf5 {[%clk 0:00:02.6]} 55. Qd6+ {[%clk 0:00:07.9]}
55... Kg7 {[%clk 0:00:03.1]} 56. Qe7+ {[%clk 0:00:08.2]} 56... Kg6 {[%clk
0:00:03.5]} 57. Qd6+ {[%clk 0:00:08.5]} 57... Kf7 {[%clk 0:00:03.7]} 58. Qc7+
{[%clk 0:00:08.6]} 58... Ke6 {[%clk 0:00:04.1]} 59. Qc6+ {[%clk 0:00:08.9]}
59... Ke5 {[%clk 0:00:04.6]} 60. Qe8+ {[%clk 0:00:09.2]} 60... Kd6 {[%clk
0:00:04.6]} 61. Qd8+ {[%clk 0:00:09.4]} 61... Kc5 {[%clk 0:00:05.1]} 62. Qc7+
{[%clk 0:00:09.7]} 62... Kb4 {[%clk 0:00:04.8]} 63. Qb6+ {[%clk 0:00:09.7]}
63... Kc3 {[%clk 0:00:05.1]} 64. Qd4+ {[%clk 0:00:10.1]} 64... Kb3 {[%clk
0:00:05.6]} 65. Qc5 {[%clk 0:00:10.4]} 65... Be4+ {[%clk 0:00:05.3]} 66. Kh2
{[%clk 0:00:10.9]} 66... Rf2# {[%clk 0:00:05.3]} 0-1

[Event "Late-Titled-Tuesday-Blitz-September-19-2023"]
[Site "Chess.com"]
[Date "2023.09.19"]
[Round "4"]
[White "rezamahdavi2008"]
[Black "Joshukid"]
[Result "0-1"]
[WhiteElo "2844"]
[BlackElo "2570"]
[TimeControl "180+1"]
[EndTime "14:39:12 PDT"]
[Termination "Joshukid won by resignation"]

1. Nf3 {[%clk 0:03:00.9]} 1... d5 {[%clk 0:02:56.3]} 2. g3 {[%clk 0:03:00.8]}
2... Nf6 {[%clk 0:02:56.2]} 3. Bg2 {[%clk 0:03:00.3]} 3... g6 {[%clk 0:02:55.4]}
4. b3 {[%clk 0:02:58.6]} 4... Bg7 {[%clk 0:02:55.4]} 5. Bb2 {[%clk 0:02:59.5]}
5... O-O {[%clk 0:02:55.3]} 6. c4 {[%clk 0:02:59.9]} 6... c6 {[%clk 0:02:55.3]}
7. O-O {[%clk 0:02:58.6]} 7... Nbd7 {[%clk 0:02:55.8]} 8. cxd5 {[%clk
0:02:57.6]} 8... cxd5 {[%clk 0:02:56]} 9. d3 {[%clk 0:02:58.3]} 9... b6 {[%clk
0:02:55.8]} 10. Nc3 {[%clk 0:02:50.2]} 10... Bb7 {[%clk 0:02:55.4]} 11. Rc1
{[%clk 0:02:50.9]} 11... Rc8 {[%clk 0:02:54.4]} 12. Qd2 {[%clk 0:02:48.4]} 12...
Re8 {[%clk 0:02:53.5]} 13. Rc2 {[%clk 0:02:42.9]} 13... a6 {[%clk 0:02:48.2]}
14. Rfc1 {[%clk 0:02:42.7]} 14... b5 {[%clk 0:02:46.7]} 15. a4 {[%clk
0:02:41.1]} 15... Qb6 {[%clk 0:02:39.1]} 16. axb5 {[%clk 0:02:29.2]} 16... axb5
{[%clk 0:02:40]} 17. Nd1 {[%clk 0:02:29.7]} 17... Rxc2 {[%clk 0:02:33]} 18. Rxc2
{[%clk 0:02:30.6]} 18... e5 {[%clk 0:02:32.5]} 19. Qe3 {[%clk 0:02:03.7]} 19...
d4 {[%clk 0:02:30.1]} 20. Qc1 {[%clk 0:02:03.7]} 20... Nd5 {[%clk 0:02:22.3]}
21. Nd2 {[%clk 0:01:47.4]} 21... N7f6 {[%clk 0:01:50.3]} 22. Ne4 {[%clk
0:01:34.8]} 22... Nxe4 {[%clk 0:01:45.8]} 23. Bxe4 {[%clk 0:01:35.7]} 23... Bf8
{[%clk 0:01:33.3]} 24. Ba3 {[%clk 0:01:18.1]} 24... b4 {[%clk 0:01:25.7]} 25.
Bxd5 {[%clk 0:01:09.3]} 25... Bxd5 {[%clk 0:01:24.9]} 26. Bb2 {[%clk 0:01:10.2]}
26... Bxb3 {[%clk 0:01:24.4]} 27. Rc6 {[%clk 0:01:10.1]} 27... Qb5 {[%clk
0:01:21.4]} 28. Rc7 {[%clk 0:01:06.4]} 28... Bd6 {[%clk 0:01:19.2]} 29. Ra7
{[%clk 0:01:04.8]} 29... Qc5 {[%clk 0:01:15.1]} 30. Qxc5 {[%clk 0:00:58.1]}
30... Bxc5 {[%clk 0:01:16]} 31. Ra1 {[%clk 0:00:58.6]} 31... Bf8 {[%clk
0:01:00.3]} 32. Kf1 {[%clk 0:00:51.7]} 32... Bxd1 {[%clk 0:00:27.9]} 33. Rxd1
{[%clk 0:00:52.6]} 33... Ra8 {[%clk 0:00:27.7]} 34. Rb1 {[%clk 0:00:40.5]} 34...
Rc8 {[%clk 0:00:23.2]} 35. Ke1 {[%clk 0:00:37.7]} 35... Rc2 {[%clk 0:00:20.8]}
36. Kd1 {[%clk 0:00:37.5]} 36... b3 {[%clk 0:00:21.4]} 37. Bc1 {[%clk
0:00:33.2]} 37... Ra2 {[%clk 0:00:15.3]} 38. Rxb3 {[%clk 0:00:33]} 38... Ra1
{[%clk 0:00:15.9]} 39. Rb8 {[%clk 0:00:32.6]} 39... Kg7 {[%clk 0:00:14.6]} 40.
Kc2 {[%clk 0:00:33.1]} 40... Ba3 {[%clk 0:00:11.5]} 41. Bxa3 {[%clk 0:00:20]}
41... Rxa3 {[%clk 0:00:12.4]} 42. Kb2 {[%clk 0:00:20.3]} 42... Ra5 {[%clk
0:00:13.1]} 43. Kb3 {[%clk 0:00:20]} 43... Ra1 {[%clk 0:00:11.8]} 44. Kc4 {[%clk
0:00:14.4]} 44... Ra2 {[%clk 0:00:10.9]} 45. f4 {[%clk 0:00:12.7]} 45... exf4
{[%clk 0:00:08.5]} 46. Re8 {[%clk 0:00:13.1]} 46... fxg3 {[%clk 0:00:08.1]} 47.
hxg3 {[%clk 0:00:14]} 47... Ra4+ {[%clk 0:00:08.4]} 48. Kd5 {[%clk 0:00:13.6]}
48... Kf6 {[%clk 0:00:08.6]} 49. Re4 {[%clk 0:00:13.9]} 49... h5 {[%clk
0:00:08.5]} 50. Rxd4 {[%clk 0:00:10.5]} 50... Rxd4+ {[%clk 0:00:09.4]} 51. Kxd4
{[%clk 0:00:11.4]} 51... Kf5 {[%clk 0:00:09.1]} 52. Ke3 {[%clk 0:00:10.7]} 52...
g5 {[%clk 0:00:08.8]} 53. Kf3 {[%clk 0:00:10.9]} 53... Ke5 {[%clk 0:00:08.2]}
54. e3 {[%clk 0:00:10.4]} 54... f5 {[%clk 0:00:08.5]} 55. Kg2 {[%clk 0:00:09.1]}
55... Kd5 {[%clk 0:00:08.3]} 56. Kf2 {[%clk 0:00:09]} 56... Kc5 {[%clk
0:00:08.8]} 57. Ke2 {[%clk 0:00:08.7]} 57... Kb4 {[%clk 0:00:09.3]} 58. Kf3
{[%clk 0:00:07.2]} 58... Kc3 {[%clk 0:00:06.2]} 59. d4 {[%clk 0:00:03.9]} 59...
Kc4 {[%clk 0:00:06.2]} 60. Ke2 {[%clk 0:00:04.5]} 60... Kd5 {[%clk 0:00:04.2]}
61. Kf3 {[%clk 0:00:04.9]} 61... Kd6 {[%clk 0:00:04.2]} 62. Kf2 {[%clk
0:00:04.6]} 62... Ke6 {[%clk 0:00:04.5]} 63. Ke2 {[%clk 0:00:05.1]} 63... Kf6
{[%clk 0:00:04.8]} 64. Kd3 {[%clk 0:00:04.7]} 64... Kg6 {[%clk 0:00:04]} 65. Ke2
{[%clk 0:00:05.4]} 65... Kf7 {[%clk 0:00:04.4]} 66. Kf3 {[%clk 0:00:05.6]} 66...
Ke6 {[%clk 0:00:05.1]} 67. Kf2 {[%clk 0:00:05.3]} 67... Kd5 {[%clk 0:00:05.5]}
68. Kf3 {[%clk 0:00:06]} 68... Kd6 {[%clk 0:00:05.5]} 69. Ke2 {[%clk 0:00:06.3]}
69... Kc6 {[%clk 0:00:05.8]} 70. Kd3 {[%clk 0:00:06.9]} 70... Kd5 {[%clk
0:00:06.1]} 71. Kd2 {[%clk 0:00:06.2]} 71... Ke4 {[%clk 0:00:07]} 72. Ke2 {[%clk
0:00:06.2]} 72... h4 {[%clk 0:00:06.3]} 73. gxh4 {[%clk 0:00:06.2]} 73... gxh4
{[%clk 0:00:06.3]} 74. Kf2 {[%clk 0:00:05.1]} 74... h3 {[%clk 0:00:05.6]} 75.
Kg1 {[%clk 0:00:02.3]} 75... Kxe3 {[%clk 0:00:03]} 76. d5 {[%clk 0:00:02.8]}
76... f4 {[%clk 0:00:03.6]} 77. d6 {[%clk 0:00:03.5]} 77... f3 {[%clk
0:00:04.4]} 78. d7 {[%clk 0:00:04.2]} 78... f2+ {[%clk 0:00:05.1]} 79. Kh2
{[%clk 0:00:01.9]} 79... f1=Q {[%clk 0:00:05.3]} 0-1